[Event "*** Titled Tuesday Blitz"]
[Site "Chess.com"]
[Date "2021.03.16"]
[Round "10"]
[White "mbojan"]
[Black "BahadirOzen"]
[Result "0-1"]
[WhiteElo "2647"]
[BlackElo "2779"]
[TimeControl "180+1"]
[EndTime "11:54:38 PDT"]
[Termination "BahadirOzen won on time"]

1. g3 {[%clk 0:03:00.9]} 1... g6 {[%clk 0:03:00.1]} 2. Bg2 {[%clk 0:03:01.1]}
2... Bg7 {[%clk 0:03:00.6]} 3. d3 {[%clk 0:03:00.5]} 3... d6 {[%clk 0:03:00.2]}
4. Nd2 {[%clk 0:03:00.5]} 4... Nd7 {[%clk 0:02:57.3]} 5. Nh3 {[%clk 0:02:56.1]}
5... Nh6 {[%clk 0:02:54.3]} 6. O-O {[%clk 0:02:55.5]} 6... O-O {[%clk
0:02:53.6]} 7. e4 {[%clk 0:02:50.1]} 7... e5 {[%clk 0:02:52.5]} 8. f4 {[%clk
0:02:48.3]} 8... f5 {[%clk 0:02:52.2]} 9. Ng5 {[%clk 0:02:43.8]} 9... Nf6 {[%clk
0:02:43.5]} 10. fxe5 {[%clk 0:02:40.3]} 10... dxe5 {[%clk 0:02:43.3]} 11. exf5
{[%clk 0:02:16]} 11... gxf5 {[%clk 0:02:41.7]} 12. Nc4 {[%clk 0:01:48.3]} 12...
Nhg4 {[%clk 0:02:40]} 13. Qe2 {[%clk 0:01:33.1]} 13... h6 {[%clk 0:02:35.6]} 14.
Nf3 {[%clk 0:01:21.5]} 14... e4 {[%clk 0:02:33.7]} 15. Nh4 {[%clk 0:01:06]}
15... exd3 {[%clk 0:02:12.6]} 16. cxd3 {[%clk 0:01:06.9]} 16... Qd4+ {[%clk
0:02:06.9]} 17. Kh1 {[%clk 0:01:04.9]} 17... Re8 {[%clk 0:02:01.7]} 18. Qf3
{[%clk 0:00:50.8]} 18... b5 {[%clk 0:01:53.5]} 19. Be3 {[%clk 0:00:28.1]} 19...
Qxd3 {[%clk 0:01:02.8]} 20. Bg1 {[%clk 0:00:14.5]} 20... Qxf3 {[%clk 0:00:58.2]}
21. Bxf3 {[%clk 0:00:15.4]} 21... Be6 {[%clk 0:00:49.3]} 22. Na5 {[%clk
0:00:08.3]} 22... Rad8 {[%clk 0:00:49.2]} 23. Nc6 {[%clk 0:00:07.4]} 23... Rd2
{[%clk 0:00:49.2]} 24. Rae1 {[%clk 0:00:07]} 24... Ne4 {[%clk 0:00:33.2]} 25.
Bxe4 {[%clk 0:00:06.6]} 25... fxe4 {[%clk 0:00:34.1]} 26. Nf5 {[%clk 0:00:05.9]}
26... e3 {[%clk 0:00:31.2]} 27. Nfe7+ {[%clk 0:00:03.4]} 27... Kh7 {[%clk
0:00:29.2]} 28. Bxe3 {[%clk 0:00:03.3]} 28... Rxh2+ {[%clk 0:00:24.6]} 29. Kg1
{[%clk 0:00:03.3]} 29... Bxa2 {[%clk 0:00:06.4]} 30. Rf4 {[%clk 0:00:01.8]}
30... Nxe3 {[%clk 0:00:02.9]} 31. Kxh2 {[%clk 0:00:02.2]} 31... Nd5 {[%clk
0:00:02.5]} 0-1

[Event "*** Titled Tuesday Blitz"]
[Site "Chess.com"]
[Date "2021.03.16"]
[Round "10"]
[White "jefferyx"]
[Black "mishanick"]
[Result "1-0"]
[WhiteElo "3017"]
[BlackElo "3027"]
[TimeControl "180+1"]
[EndTime "11:54:39 PDT"]
[Termination "jefferyx won by resignation"]

1. e4 {[%clk 0:02:54.4]} 1... c5 {[%clk 0:03:00.2]} 2. Nf3 {[%clk 0:02:54.6]}
2... d6 {[%clk 0:03:00.9]} 3. d4 {[%clk 0:02:54.9]} 3... cxd4 {[%clk 0:03:01.2]}
4. Nxd4 {[%clk 0:02:55.8]} 4... Nf6 {[%clk 0:03:01.9]} 5. Nc3 {[%clk 0:02:55.9]}
5... a6 {[%clk 0:03:02.4]} 6. h3 {[%clk 0:02:56.4]} 6... b5 {[%clk 0:03:01.9]}
7. a4 {[%clk 0:02:29.3]} 7... b4 {[%clk 0:03:01.6]} 8. Nd5 {[%clk 0:02:29]} 8...
e6 {[%clk 0:03:02.2]} 9. Nxf6+ {[%clk 0:02:28.1]} 9... Qxf6 {[%clk 0:03:03.1]}
10. g3 {[%clk 0:02:26.7]} 10... e5 {[%clk 0:03:00.1]} 11. Nf5 {[%clk 0:02:20.2]}
11... Bb7 {[%clk 0:02:56.4]} 12. Bg2 {[%clk 0:01:56.8]} 12... d5 {[%clk
0:02:56.6]} 13. Ne3 {[%clk 0:01:57.4]} 13... dxe4 {[%clk 0:02:20.2]} 14. Nd5
{[%clk 0:01:57.3]} 14... Qd6 {[%clk 0:02:20.6]} 15. Bxe4 {[%clk 0:01:55.2]}
15... Nd7 {[%clk 0:02:13.8]} 16. Be3 {[%clk 0:01:55]} 16... f5 {[%clk
0:01:31.1]} 17. Nf6+ {[%clk 0:01:43.6]} 17... Qxf6 {[%clk 0:01:06.6]} 18. Bxb7
{[%clk 0:01:44.5]} 18... Rd8 {[%clk 0:01:06.9]} 19. Qe2 {[%clk 0:01:41]} 19...
Nc5 {[%clk 0:00:52.5]} 20. Bg2 {[%clk 0:01:13.7]} 20... Qe6 {[%clk 0:00:46.6]}
21. Rd1 {[%clk 0:01:07.6]} 21... Rxd1+ {[%clk 0:00:41.5]} 22. Qxd1 {[%clk
0:01:08.5]} 22... Bd6 {[%clk 0:00:34.9]} 23. Bd5 {[%clk 0:01:01.3]} 23... Qf6
{[%clk 0:00:28.4]} 24. O-O {[%clk 0:01:00.6]} 24... Ke7 {[%clk 0:00:27.2]} 25.
Qd2 {[%clk 0:00:57.2]} 25... f4 {[%clk 0:00:21.4]} 26. gxf4 {[%clk 0:00:58.1]}
26... Rd8 {[%clk 0:00:20.3]} 27. fxe5 {[%clk 0:00:53]} 27... Qxe5 {[%clk
0:00:18.5]} 28. Bg5+ {[%clk 0:00:52.1]} 28... Kd7 {[%clk 0:00:10.6]} 29. f4
{[%clk 0:00:52]} 29... Qxb2 {[%clk 0:00:09.2]} 30. Bxd8 {[%clk 0:00:48.3]} 30...
Kxd8 {[%clk 0:00:10.1]} 31. Bg2 {[%clk 0:00:33.1]} 31... Qf6 {[%clk 0:00:06.7]}
32. Rd1 {[%clk 0:00:33.5]} 32... Ke7 {[%clk 0:00:06.3]} 33. Qxb4 {[%clk
0:00:24.7]} 33... Qxf4 {[%clk 0:00:06.2]} 34. Qxf4 {[%clk 0:00:20.7]} 34... Bxf4
{[%clk 0:00:07.1]} 35. Bc6 {[%clk 0:00:21.1]} 35... Bd6 {[%clk 0:00:04]} 36. Kg2
{[%clk 0:00:20.7]} 36... g6 {[%clk 0:00:04]} 37. Kf3 {[%clk 0:00:21]} 37... Ke6
{[%clk 0:00:04.5]} 38. Re1+ {[%clk 0:00:20.3]} 38... Be5 {[%clk 0:00:04.3]} 39.
Rd1 {[%clk 0:00:20.5]} 39... h6 {[%clk 0:00:03.6]} 40. Kg4 {[%clk 0:00:20.7]}
40... Bf6 {[%clk 0:00:02.9]} 41. Be8 {[%clk 0:00:20.4]} 41... h5+ {[%clk
0:00:02.1]} 42. Kf3 {[%clk 0:00:20]} 42... Kf5 {[%clk 0:00:03]} 43. Rd5+ {[%clk
0:00:19.7]} 43... Be5 {[%clk 0:00:03.3]} 44. Rxc5 {[%clk 0:00:20.6]} 1-0

[Event "*** Titled Tuesday Blitz"]
[Site "Chess.com"]
[Date "2021.03.16"]
[Round "10"]
[White "Lady_Nika"]
[Black "chesslh19"]
[Result "1/2-1/2"]
[WhiteElo "2380"]
[BlackElo "2259"]
[TimeControl "180+1"]
[EndTime "11:54:39 PDT"]
[Termination "Game drawn by repetition"]

1. d4 {[%clk 0:02:59.8]} 1... Nf6 {[%clk 0:02:55.7]} 2. e3 {[%clk 0:03:00.1]}
2... d5 {[%clk 0:02:55]} 3. f4 {[%clk 0:03:00.4]} 3... c5 {[%clk 0:02:51]} 4.
Nf3 {[%clk 0:02:59.4]} 4... Nc6 {[%clk 0:02:48.7]} 5. c3 {[%clk 0:02:58.5]} 5...
Bg4 {[%clk 0:02:43.3]} 6. Be2 {[%clk 0:02:58.5]} 6... e6 {[%clk 0:02:41.9]} 7.
Ne5 {[%clk 0:02:58.4]} 7... Bxe2 {[%clk 0:02:41.1]} 8. Qxe2 {[%clk 0:02:58.5]}
8... Be7 {[%clk 0:02:36.6]} 9. Nd2 {[%clk 0:02:57.9]} 9... O-O {[%clk
0:02:36.1]} 10. O-O {[%clk 0:02:57.6]} 10... Rc8 {[%clk 0:02:31.6]} 11. b3
{[%clk 0:02:56.7]} 11... Ne4 {[%clk 0:02:18.9]} 12. Nxe4 {[%clk 0:02:46]} 12...
dxe4 {[%clk 0:02:19.8]} 13. Bb2 {[%clk 0:02:46.2]} 13... f6 {[%clk 0:01:52.2]}
14. Ng4 {[%clk 0:02:43.4]} 14... f5 {[%clk 0:01:41.9]} 15. Ne5 {[%clk
0:02:42.4]} 15... Nxe5 {[%clk 0:01:40.3]} 16. fxe5 {[%clk 0:02:42.5]} 16... cxd4
{[%clk 0:01:35.8]} 17. exd4 {[%clk 0:02:42.6]} 17... Qd7 {[%clk 0:01:30.8]} 18.
Rad1 {[%clk 0:02:41.4]} 18... a6 {[%clk 0:01:17.1]} 19. c4 {[%clk 0:02:38.4]}
19... b5 {[%clk 0:01:14]} 20. d5 {[%clk 0:02:38.3]} 20... Bc5+ {[%clk
0:01:08.5]} 21. Kh1 {[%clk 0:02:37.7]} 21... bxc4 {[%clk 0:01:06.9]} 22. bxc4
{[%clk 0:02:35.3]} 22... Rb8 {[%clk 0:01:01.7]} 23. Ba1 {[%clk 0:02:32.5]} 23...
Rfe8 {[%clk 0:00:35]} 24. h3 {[%clk 0:02:31.5]} 24... Qb7 {[%clk 0:00:32.2]} 25.
dxe6 {[%clk 0:02:30.2]} 25... Rxe6 {[%clk 0:00:30]} 26. Rxf5 {[%clk 0:02:30]}
26... e3 {[%clk 0:00:21.4]} 27. Bc3 {[%clk 0:02:20.2]} 27... Qe4 {[%clk
0:00:21.3]} 28. Qg4 {[%clk 0:02:15.6]} 28... Qxg4 {[%clk 0:00:19.5]} 29. hxg4
{[%clk 0:02:15.6]} 29... Rh6+ {[%clk 0:00:13.2]} 30. Rh5 {[%clk 0:02:13.4]}
30... Rxh5+ {[%clk 0:00:13.4]} 31. gxh5 {[%clk 0:02:13.4]} 31... Kf7 {[%clk
0:00:10.6]} 32. Kh2 {[%clk 0:02:12.3]} 32... Ke6 {[%clk 0:00:10.9]} 33. Kg3
{[%clk 0:02:12.7]} 33... Rf8 {[%clk 0:00:10.7]} 34. Re1 {[%clk 0:02:05.5]} 34...
Rf2 {[%clk 0:00:10.4]} 35. a3 {[%clk 0:01:58.6]} 35... Rc2 {[%clk 0:00:10.5]}
36. Bb4 {[%clk 0:01:57.9]} 36... Rxc4 {[%clk 0:00:08.7]} 37. Bxc5 {[%clk
0:01:57.5]} 37... Rxc5 {[%clk 0:00:09.6]} 38. Rxe3 {[%clk 0:01:57.7]} 38... Rxe5
{[%clk 0:00:09.9]} 39. Rb3 {[%clk 0:01:57.6]} 39... Ra5 {[%clk 0:00:09.7]} 40.
Kg4 {[%clk 0:01:56.4]} 40... Ra4+ {[%clk 0:00:09.6]} 41. Kh3 {[%clk 0:01:55.7]}
41... Kf6 {[%clk 0:00:09.2]} 42. g4 {[%clk 0:01:56]} 42... Kg5 {[%clk
0:00:09.4]} 43. Rc3 {[%clk 0:01:56.1]} 43... g6 {[%clk 0:00:09.2]} 44. Rc5+
{[%clk 0:01:56]} 44... Kf4 {[%clk 0:00:08.1]} 45. hxg6 {[%clk 0:01:53]} 45...
hxg6 {[%clk 0:00:08.2]} 46. Rc3 {[%clk 0:01:52.6]} 46... Kg5 {[%clk 0:00:08.4]}
47. Rd3 {[%clk 0:01:49.2]} 47... Kf6 {[%clk 0:00:08.1]} 48. Kh4 {[%clk
0:01:48.2]} 48... Ke5 {[%clk 0:00:07.6]} 49. Kg5 {[%clk 0:01:47.9]} 49... Ke4
{[%clk 0:00:07.9]} 50. Rb3 {[%clk 0:01:47.6]} 50... Kd5 {[%clk 0:00:07.1]} 51.
Rb4 {[%clk 0:01:45.6]} 51... Rxa3 {[%clk 0:00:06.8]} 52. Kxg6 {[%clk 0:01:45]}
52... a5 {[%clk 0:00:07.4]} 53. Rf4 {[%clk 0:01:44.5]} 53... a4 {[%clk
0:00:07.1]} 54. Kf5 {[%clk 0:01:44.3]} 54... Kc5 {[%clk 0:00:07.2]} 55. g5
{[%clk 0:01:44.5]} 55... Kb5 {[%clk 0:00:06.7]} 56. g6 {[%clk 0:01:44.7]} 56...
Rg3 {[%clk 0:00:06.6]} 57. Rg4 {[%clk 0:01:45]} 57... Rf3+ {[%clk 0:00:06.6]}
58. Ke6 {[%clk 0:01:43.7]} 58... Rf8 {[%clk 0:00:06.6]} 59. Ke7 {[%clk
0:01:41.7]} 59... Rg8 {[%clk 0:00:06.7]} 60. Kf7 {[%clk 0:01:41.2]} 60... Ra8
{[%clk 0:00:06.2]} 61. Rg1 {[%clk 0:01:38.3]} 61... a3 {[%clk 0:00:05.2]} 62.
Ke6 {[%clk 0:01:38]} 62... Kb4 {[%clk 0:00:05.3]} 63. Kd5 {[%clk 0:01:37.9]}
63... Kb3 {[%clk 0:00:05.3]} 64. Rg3+ {[%clk 0:01:37.7]} 64... Kb2 {[%clk
0:00:05.2]} 65. Rg2+ {[%clk 0:01:37.6]} 65... Kb1 {[%clk 0:00:04.6]} 66. Rg1+
{[%clk 0:01:37.3]} 66... Kb2 {[%clk 0:00:04.9]} 67. Kc4 {[%clk 0:01:36]} 67...
a2 {[%clk 0:00:05]} 68. Rg2+ {[%clk 0:01:36.2]} 68... Kb1 {[%clk 0:00:05.4]} 69.
Rg1+ {[%clk 0:01:34.4]} 69... Kb2 {[%clk 0:00:05.3]} 70. Rg2+ {[%clk 0:01:34]}
70... Kb1 {[%clk 0:00:05.9]} 71. Rg1+ {[%clk 0:01:34.2]} 71... Kb2 {[%clk
0:00:06.4]} 1/2-1/2

[Event "*** Titled Tuesday Blitz"]
[Site "Chess.com"]
[Date "2021.03.16"]
[Round "10"]
[White "Hangar-18"]
[Black "suneebaker"]
[Result "1-0"]
[WhiteElo "2321"]
[BlackElo "2194"]
[TimeControl "180+1"]
[EndTime "11:54:39 PDT"]
[Termination "Hangar-18 won by resignation"]

1. c4 {[%clk 0:03:00.9]} 1... e6 {[%clk 0:02:58.5]} 2. Nf3 {[%clk 0:02:59.3]}
2... f5 {[%clk 0:02:58.1]} 3. d4 {[%clk 0:02:59]} 3... Nf6 {[%clk 0:02:57.9]} 4.
Nc3 {[%clk 0:02:58.9]} 4... Be7 {[%clk 0:02:57.8]} 5. Bf4 {[%clk 0:02:58]} 5...
O-O {[%clk 0:02:57]} 6. Qc2 {[%clk 0:02:58.1]} 6... d6 {[%clk 0:02:56.5]} 7. Rd1
{[%clk 0:02:55.5]} 7... Qe8 {[%clk 0:02:47.7]} 8. e3 {[%clk 0:02:51.8]} 8...
Nbd7 {[%clk 0:02:44.7]} 9. Ng5 {[%clk 0:02:46.6]} 9... Bd8 {[%clk 0:02:42.1]}
10. d5 {[%clk 0:02:36.8]} 10... e5 {[%clk 0:02:39.7]} 11. Bg3 {[%clk 0:02:37.2]}
11... Nc5 {[%clk 0:02:37.3]} 12. b4 {[%clk 0:02:36.2]} 12... Na6 {[%clk
0:02:36.8]} 13. a3 {[%clk 0:02:35.2]} 13... h6 {[%clk 0:02:32.6]} 14. Ne6 {[%clk
0:02:11.4]} 14... Bxe6 {[%clk 0:02:30.8]} 15. dxe6 {[%clk 0:02:12.3]} 15... Qxe6
{[%clk 0:02:25.2]} 16. c5 {[%clk 0:01:56.3]} 16... Kh8 {[%clk 0:02:21.6]} 17. c6
{[%clk 0:01:48.1]} 17... bxc6 {[%clk 0:01:57.7]} 18. Bxa6 {[%clk 0:01:44.4]}
18... f4 {[%clk 0:01:57.5]} 19. Bh4 {[%clk 0:01:17.4]} 19... g5 {[%clk 0:01:55]}
20. Qg6 {[%clk 0:01:17.1]} 20... gxh4 {[%clk 0:01:39.1]} 21. Qxh6+ {[%clk
0:01:16.1]} 21... Kg8 {[%clk 0:01:39.1]} 22. Qg6+ {[%clk 0:00:37]} 22... Kh8
{[%clk 0:01:38.3]} 23. O-O {[%clk 0:00:37.3]} 23... Qg4 {[%clk 0:01:32.5]} 24.
Qh6+ {[%clk 0:00:30]} 24... Kg8 {[%clk 0:01:28.4]} 25. exf4 {[%clk 0:00:23.2]}
25... Qxf4 {[%clk 0:01:22.9]} 26. Qg6+ {[%clk 0:00:20.4]} 26... Kh8 {[%clk
0:01:22.5]} 27. Bb7 {[%clk 0:00:19.4]} 27... Rb8 {[%clk 0:01:20.5]} 28. Bxc6
{[%clk 0:00:19]} 28... Rg8 {[%clk 0:01:19.5]} 29. Qf7 {[%clk 0:00:15.9]} 29...
Ng4 {[%clk 0:01:03.1]} 30. Qxf4 {[%clk 0:00:15.1]} 30... exf4 {[%clk 0:01:02.3]}
31. h3 {[%clk 0:00:15]} 31... Ne5 {[%clk 0:01:02.2]} 32. Bd5 {[%clk 0:00:15]}
32... Be7 {[%clk 0:01:01.7]} 33. Bxg8 {[%clk 0:00:13.4]} 33... Rxg8 {[%clk
0:01:00.2]} 34. Nd5 {[%clk 0:00:14]} 34... Bd8 {[%clk 0:00:59.4]} 35. Rfe1
{[%clk 0:00:14.4]} 35... Nf3+ {[%clk 0:00:58.8]} 36. Kf1 {[%clk 0:00:13.9]}
36... Nxe1 {[%clk 0:00:57.2]} 37. Rxe1 {[%clk 0:00:14.8]} 37... c6 {[%clk
0:00:53.5]} 38. Nxf4 {[%clk 0:00:14.2]} 38... Bg5 {[%clk 0:00:52]} 39. Ne6
{[%clk 0:00:14.1]} 39... Bf6 {[%clk 0:00:49.8]} 40. Nf4 {[%clk 0:00:13.8]} 40...
Bb2 {[%clk 0:00:41.1]} 41. Re3 {[%clk 0:00:13.1]} 41... Bc1 {[%clk 0:00:36.4]}
42. Rf3 {[%clk 0:00:12.8]} 42... Bxf4 {[%clk 0:00:34]} 43. Rxf4 {[%clk
0:00:12.9]} 43... Rg5 {[%clk 0:00:33.6]} 44. Rxh4+ {[%clk 0:00:13.2]} 44... Kg7
{[%clk 0:00:33.1]} 45. Rd4 {[%clk 0:00:13.6]} 45... d5 {[%clk 0:00:32.2]} 46.
Rg4 {[%clk 0:00:12.9]} 1-0

[Event "*** Titled Tuesday Blitz"]
[Site "Chess.com"]
[Date "2021.03.16"]
[Round "10"]
[White "Mikhail_Golubev"]
[Black "Sokoloco"]
[Result "0-1"]
[WhiteElo "2536"]
[BlackElo "2450"]
[TimeControl "180+1"]
[EndTime "11:54:40 PDT"]
[Termination "Sokoloco won on time"]

1. e4 {[%clk 0:03:00.9]} 1... g6 {[%clk 0:02:59.8]} 2. d4 {[%clk 0:02:59.9]}
2... Bg7 {[%clk 0:03:00.3]} 3. c4 {[%clk 0:02:58.7]} 3... d6 {[%clk 0:02:56.9]}
4. Nc3 {[%clk 0:02:58.5]} 4... Nf6 {[%clk 0:02:57.4]} 5. h3 {[%clk 0:02:54.6]}
5... O-O {[%clk 0:02:53.6]} 6. Nf3 {[%clk 0:02:54.5]} 6... e5 {[%clk 0:02:51.7]}
7. d5 {[%clk 0:02:51.8]} 7... c5 {[%clk 0:02:50.6]} 8. Bg5 {[%clk 0:02:16.7]}
8... h6 {[%clk 0:02:45.3]} 9. Be3 {[%clk 0:02:16.4]} 9... a6 {[%clk 0:02:36]}
10. a4 {[%clk 0:02:11.9]} 10... Kh7 {[%clk 0:02:21.8]} 11. g4 {[%clk 0:02:09.8]}
11... Ne8 {[%clk 0:02:19.1]} 12. Bd3 {[%clk 0:02:08]} 12... Nc7 {[%clk
0:02:10.4]} 13. Nd2 {[%clk 0:02:05]} 13... Nd7 {[%clk 0:02:08.3]} 14. h4 {[%clk
0:01:55.8]} 14... Rb8 {[%clk 0:02:01.6]} 15. a5 {[%clk 0:01:51.7]} 15... b5
{[%clk 0:01:52.5]} 16. axb6 {[%clk 0:01:50.8]} 16... Rxb6 {[%clk 0:01:52.7]} 17.
h5 {[%clk 0:01:43.7]} 17... g5 {[%clk 0:01:47]} 18. Qc2 {[%clk 0:01:35.9]} 18...
f6 {[%clk 0:01:41.1]} 19. Nf1 {[%clk 0:01:29]} 19... Rf7 {[%clk 0:01:14.9]} 20.
Ng3 {[%clk 0:01:28.3]} 20... Nf8 {[%clk 0:01:15.1]} 21. Nf5 {[%clk 0:01:27.8]}
21... Ne8 {[%clk 0:01:07.1]} 22. b3 {[%clk 0:01:10.5]} 22... Rfb7 {[%clk
0:00:58.4]} 23. Rb1 {[%clk 0:01:10.4]} 23... Rb8 {[%clk 0:00:50.6]} 24. O-O
{[%clk 0:01:10.1]} 24... Nc7 {[%clk 0:00:46.8]} 25. Na4 {[%clk 0:01:06.6]} 25...
R6b7 {[%clk 0:00:47]} 26. Rfd1 {[%clk 0:01:01.3]} 26... a5 {[%clk 0:00:44.2]}
27. Nxd6 {[%clk 0:00:31.2]} 27... Qxd6 {[%clk 0:00:39.1]} 28. Bxc5 {[%clk
0:00:30.9]} 28... Qd8 {[%clk 0:00:23.6]} 29. Be2 {[%clk 0:00:30.8]} 29... Nd7
{[%clk 0:00:23.4]} 30. Bd6 {[%clk 0:00:26.6]} 30... Nb6 {[%clk 0:00:22.3]} 31.
Nxb6 {[%clk 0:00:16.2]} 31... Rxb6 {[%clk 0:00:17.5]} 32. Bxc7 {[%clk
0:00:15.2]} 32... Qxc7 {[%clk 0:00:18]} 33. c5 {[%clk 0:00:15.6]} 33... Rb4
{[%clk 0:00:18.5]} 34. d6 {[%clk 0:00:15.1]} 34... Qc6 {[%clk 0:00:18.1]} 35. f3
{[%clk 0:00:10.6]} 35... Be6 {[%clk 0:00:18.2]} 36. Rd3 {[%clk 0:00:02.8]} 36...
a4 {[%clk 0:00:17.6]} 37. Rbd1 {[%clk 0:00:01.5]} 37... axb3 {[%clk 0:00:17.9]}
38. Qb1 {[%clk 0:00:01.8]} 38... Qxc5+ {[%clk 0:00:16]} 0-1

[Event "*** Titled Tuesday Blitz"]
[Site "Chess.com"]
[Date "2021.03.16"]
[Round "10"]
[White "KarateBaby"]
[Black "Andrakhanova"]
[Result "0-1"]
[WhiteElo "2119"]
[BlackElo "2227"]
[TimeControl "180+1"]
[EndTime "11:54:42 PDT"]
[Termination "Andrakhanova won by resignation"]

1. Nf3 {[%clk 0:02:39]} 1... d5 {[%clk 0:02:58.6]} 2. c4 {[%clk 0:02:37.3]} 2...
e6 {[%clk 0:02:58.4]} 3. e3 {[%clk 0:02:35.6]} 3... c6 {[%clk 0:02:58.4]} 4. Nc3
{[%clk 0:02:26.6]} 4... Nf6 {[%clk 0:02:57.5]} 5. Qc2 {[%clk 0:02:19.5]} 5...
Nbd7 {[%clk 0:02:57.5]} 6. d4 {[%clk 0:02:17.9]} 6... Bd6 {[%clk 0:02:56.8]} 7.
Bd2 {[%clk 0:02:14.3]} 7... O-O {[%clk 0:02:56.4]} 8. O-O-O {[%clk 0:02:14.2]}
8... a5 {[%clk 0:02:54]} 9. e4 {[%clk 0:01:42.4]} 9... dxe4 {[%clk 0:02:48.2]}
10. Nxe4 {[%clk 0:01:43.3]} 10... Nxe4 {[%clk 0:02:49]} 11. Qxe4 {[%clk
0:01:44.2]} 11... c5 {[%clk 0:02:41.3]} 12. Bd3 {[%clk 0:01:32.8]} 12... g6
{[%clk 0:02:38.4]} 13. d5 {[%clk 0:01:23.9]} 13... exd5 {[%clk 0:02:27.9]} 14.
cxd5 {[%clk 0:01:19.3]} 14... Nf6 {[%clk 0:02:25.3]} 15. Qh4 {[%clk 0:01:19]}
15... Nxd5 {[%clk 0:02:17.9]} 16. Ng5 {[%clk 0:01:08.7]} 16... h5 {[%clk
0:02:14.7]} 17. Bc4 {[%clk 0:00:40.2]} 17... Be6 {[%clk 0:01:57.5]} 18. Bxd5
{[%clk 0:00:19.4]} 18... Bxd5 {[%clk 0:01:58.4]} 19. Bc3 {[%clk 0:00:19.7]}
19... Be7 {[%clk 0:01:33]} 20. f4 {[%clk 0:00:18.2]} 20... Qd7 {[%clk
0:01:21.3]} 21. Qf2 {[%clk 0:00:15.9]} 21... Rad8 {[%clk 0:01:13.2]} 22. Rhe1
{[%clk 0:00:13.5]} 22... Rfe8 {[%clk 0:01:06.9]} 23. Kb1 {[%clk 0:00:04.3]}
23... Qf5+ {[%clk 0:01:00]} 24. Ka1 {[%clk 0:00:04]} 24... Bxg5 {[%clk
0:00:56.5]} 25. Rxe8+ {[%clk 0:00:04.9]} 25... Rxe8 {[%clk 0:00:48.2]} 26. Qxc5
{[%clk 0:00:05.8]} 26... Bxf4 {[%clk 0:00:30.8]} 27. Qxd5 {[%clk 0:00:05.2]}
27... Qxd5 {[%clk 0:00:28]} 28. Rxd5 {[%clk 0:00:06.1]} 28... Bxh2 {[%clk
0:00:27.7]} 29. Rxa5 {[%clk 0:00:06.2]} 29... h4 {[%clk 0:00:24.7]} 30. a4
{[%clk 0:00:06.3]} 30... Bg3 {[%clk 0:00:20.1]} 31. Rb5 {[%clk 0:00:06.7]} 31...
Re7 {[%clk 0:00:18.7]} 32. Ka2 {[%clk 0:00:06.9]} 32... Kh7 {[%clk 0:00:17.8]}
33. Rd5 {[%clk 0:00:05.6]} 33... Re2 {[%clk 0:00:15.1]} 34. Rd8 {[%clk
0:00:05.6]} 34... g5 {[%clk 0:00:14.7]} 35. Rh8+ {[%clk 0:00:04.5]} 35... Kg6
{[%clk 0:00:14.9]} 36. Rg8+ {[%clk 0:00:04.9]} 36... Kf5 {[%clk 0:00:15.1]} 37.
Rf8 {[%clk 0:00:05.3]} 37... Kg4 {[%clk 0:00:14]} 38. Rxf7 {[%clk 0:00:05.2]}
38... Rxg2 {[%clk 0:00:14.6]} 39. Rxb7 {[%clk 0:00:04.6]} 39... h3 {[%clk
0:00:15]} 40. a5 {[%clk 0:00:04.3]} 40... h2 {[%clk 0:00:15]} 41. Rh7 {[%clk
0:00:04.3]} 41... Bh4 {[%clk 0:00:15.4]} 0-1

[Event "*** Titled Tuesday Blitz"]
[Site "Chess.com"]
[Date "2021.03.16"]
[Round "10"]
[White "NishaOnYoutube"]
[Black "LamaChampetre"]
[Result "0-1"]
[WhiteElo "2104"]
[BlackElo "2218"]
[TimeControl "180+1"]
[EndTime "11:54:45 PDT"]
[Termination "LamaChampetre won on time"]

1. e4 {[%clk 0:03:00.9]} 1... c5 {[%clk 0:02:59.1]} 2. d4 {[%clk 0:03:00]} 2...
cxd4 {[%clk 0:02:58.4]} 3. c3 {[%clk 0:02:59.8]} 3... d5 {[%clk 0:02:57.9]} 4.
exd5 {[%clk 0:02:58.7]} 4... Nf6 {[%clk 0:02:57.5]} 5. cxd4 {[%clk 0:02:59.6]}
5... Nxd5 {[%clk 0:02:57.5]} 6. Nf3 {[%clk 0:02:51.4]} 6... g6 {[%clk
0:02:56.8]} 7. Nc3 {[%clk 0:02:44]} 7... Bg7 {[%clk 0:02:56.2]} 8. Be2 {[%clk
0:02:28.8]} 8... O-O {[%clk 0:02:54.9]} 9. O-O {[%clk 0:02:25.1]} 9... Nc6
{[%clk 0:02:54.9]} 10. h3 {[%clk 0:02:17.7]} 10... b6 {[%clk 0:02:55.1]} 11. Bg5
{[%clk 0:01:54.5]} 11... Bb7 {[%clk 0:02:53.8]} 12. Rc1 {[%clk 0:01:53.2]} 12...
h6 {[%clk 0:02:52.8]} 13. Be3 {[%clk 0:01:44.9]} 13... Rc8 {[%clk 0:02:49.3]}
14. Re1 {[%clk 0:01:41.5]} 14... Qd7 {[%clk 0:02:23.4]} 15. Bb5 {[%clk
0:01:16.4]} 15... a6 {[%clk 0:02:17.5]} 16. Ne5 {[%clk 0:00:59.8]} 16... Qd8
{[%clk 0:01:39.7]} 17. Nxc6 {[%clk 0:00:55.8]} 17... Bxc6 {[%clk 0:01:33.7]} 18.
Bxa6 {[%clk 0:00:55.5]} 18... Ra8 {[%clk 0:01:32.3]} 19. Bc4 {[%clk 0:00:51.6]}
19... Nxe3 {[%clk 0:01:22.1]} 20. fxe3 {[%clk 0:00:49.4]} 20... Qd7 {[%clk
0:01:08.4]} 21. Rf1 {[%clk 0:00:44.9]} 21... b5 {[%clk 0:01:04.2]} 22. Bb3
{[%clk 0:00:44.2]} 22... b4 {[%clk 0:00:58.1]} 23. Ne2 {[%clk 0:00:39.7]} 23...
Bb7 {[%clk 0:00:55.8]} 24. Qd3 {[%clk 0:00:33.4]} 24... e6 {[%clk 0:00:50]} 25.
e4 {[%clk 0:00:28.5]} 25... Ba6 {[%clk 0:00:48.3]} 26. Bc4 {[%clk 0:00:25.9]}
26... Bb7 {[%clk 0:00:31.6]} 27. Rcd1 {[%clk 0:00:23.3]} 27... Rfd8 {[%clk
0:00:28.8]} 28. e5 {[%clk 0:00:18.2]} 28... Qc6 {[%clk 0:00:26]} 29. Rf2 {[%clk
0:00:15.9]} 29... Bxe5 {[%clk 0:00:22.3]} 30. Bb3 {[%clk 0:00:10.6]} 30... Bg7
{[%clk 0:00:19.7]} 31. Qe3 {[%clk 0:00:10.2]} 31... Rd6 {[%clk 0:00:18.7]} 32.
Nf4 {[%clk 0:00:07.5]} 32... Rad8 {[%clk 0:00:15.7]} 33. Ne2 {[%clk 0:00:04.4]}
33... Ba6 {[%clk 0:00:14]} 34. Rd2 {[%clk 0:00:02.4]} 34... Bxe2 {[%clk
0:00:12.5]} 0-1